Cogmind - Beta 13 *** ADVENTURER MODE // 2024.06.07 @ 23:49:57 Player: Jefffff Result: Self-destructed Performance ------------- Evolutions (1) 500 Regions Visited (2) 400 Robots Destroyed (28) 140 Value Destroyed (544) 544 Prototype IDs (1) 20 Alien Tech Used (0) 0 Bonus (24) 24 TOTAL SCORE: 1628 Bonus ------- High Alert Combat Kills 24 Cogmind --------- Core Integrity 293/400 Matter 375/400 Energy 100/100 System Corruption 0% Temperature Cool (6) Movement Core (400) Ox7 Location -9/Materials Parts ------- > --- POWER (2) -------- (None) > --- PROPULSION (2) --- (None) > --- UTILITY (3) ------ Large Storage Unit Medium Matter Pod Visual Processing Unit > --- WEAPON (2) ------- (None) > --- INVENTORY (15) --- Improved Flight Unit Improved Flight Unit Heat Sink Large Storage Unit Peak State ------------ > --- POWER ------------ Ion Engine > --- PROPULSION ------- Improved Flight Unit Improved Flight Unit > --- UTILITY ---------- Heat Sink Medium Matter Pod > --- WEAPON ----------- EM Shotgun Particle Gun > --- INVENTORY -------- Signal Interpreter [Rating: 13] Favorites ----------- Power Light Ion Engine Engine Light Ion Engine Propulsion Wheel Wheel Wheel Flight Unit Flight Unit Utility Medium Matter Pod Device Improved Terrain Scanner Storage Medium Matter Pod Processor Visual Processing Unit Weapon Small Laser Energy Gun Small Laser Ballistic Gun Light Assault Rifle Launcher Grenade Launcher Build | -11 -10 -9 ------- Run | Yrd Mat Mat Slots Evolved 2 | . . 2 Power 1 | . . 1 Propulsion . | . . . Utility 1 | . . 1 Weapon . | . . . Parts Attached 37 | 7 27 3 Power 6 | 1 5 . Engine 6 | 1 5 . Core . | . . . Reactor . | . . . Propulsion 11 | 2 9 . Treads . | . . . Leg . | . . . Wheel 7 | 2 5 . Hover . | . . . Flight 4 | . 4 . Utility 8 | 2 4 2 Device 2 | 1 1 . Storage 4 | 1 3 . Processor 2 | . . 2 Hackware . | . . . Protection . | . . . Artifact . | . . . Weapon 12 | 2 9 1 Energy Gun 7 | 2 4 1 Energy Cannon . | . . . Ballistic Gun 4 | . 4 . Ballistic Cannon . | . . . Launcher 1 | . 1 . Special Weapon . | . . . Impact Weapon . | . . . Slashing Weapon . | . . . Piercing Weapon . | . . . Special Melee Weapon . | . . . Unidentified Prototypes 1 | . 1 . Parts Lost 6 | . 1 5 Power 1 | . . 1 Propulsion 2 | . . 2 Utility . | . . . Weapon 3 | . 1 2 Highest Loss Streak 5 | . 1 5 To Critical Strikes . | . . . Average Slot Usage (%) 93 | . 97 71 Engine 13 | . 14 11 Wheel 20 | . 21 16 Flight 5 | . 6 . Device 9 | . 10 . Storage 17 | . 17 22 Processor 1 | . . 9 Energy Gun 18 | . 19 12 Ballistic Gun 5 | . 5 . Naked Turns . | . . . Heaviest Build 33 | 7 33 31 Greatest Support 20 | 20 20 20 Greatest Overweight (x) 8 | . 4 8 Average Overweight (x) . | . . 1 Largest Inventory Capacity 15 | 5 15 15 Average Capacity 8 | 5 7 15 Most Carried 9 | 2 9 6 Average Carried 3 | . 3 4 Final Capacity 15 | 5 15 15 Final Carried 7 | 1 7 4 Class Distribution -------------------- 60% | Scavenger-Mutant 39% | Mutant Dominant Class ---------------- Scavenger-Mutant | -10/Materials Scavenger-Mutant | -9/Materials Resources | -11 -10 -9 ----------- Run | Yrd Mat Mat Matter Collected 664 | 286 378 . Remotely . | . . . Salvage Created 812 | 113 699 . Parts 69 | 15 54 . Haulers Intercepted 1 | . 1 . Recyclers Shooed 1 | . 1 . Parts Field Recycled . | . . . Retrieved Matter . | . . . Parts Self-Destructed . | . . . Prevented . | . . . Kills | -11 -10 -9 ------- Run | Yrd Mat Mat Combat Hostiles Destroyed 13 | 1 12 . Guns 11 | 1 10 . AOE 2 | . 2 . Classes Destroyed 7 | 3 4 . Worker 5 | 1 4 . Builder 2 | . 2 . Tunneler 5 | 4 1 . Hauler 1 | . 1 . Watcher 2 | . 2 . Swarmer 2 | . 2 . Grunt 11 | 1 10 . Best Kill Streak 9 | 6 9 . Combat Bots Only 4 | 1 4 . Max Kills in Single Turn 2 | 1 2 . Gunslinging 1 | . 1 . Exploded 2 | . 2 . Melee . | . . . Uniques/NPCs Destroyed . | . . . Combat | -11 -10 -9 -------- Run | Yrd Mat Mat Hostile Shots Fired 115 | 1 61 53 Missed 38 | 1 21 16 Damage Taken 846 | . 428 418 Core 216 | . 109 107 Absorbed by Shields . | . . . Ignored by Resistances 247 | . 128 119 Core Remaining (%) 78 | 100 56 . Volleys Fired 59 | 6 48 5 Largest 2 | 2 2 2 Hottest 110 | 80 110 110 Shots Fired 101 | 12 80 9 Gun 100 | 12 79 9 Cannon . | . . . Launcher 1 | . 1 . Special . | . . . Kinetic 24 | . 24 . Thermal 68 | 12 51 5 Explosive 1 | . 1 . Electromagnetic 8 | . 4 4 Robot Hit Streak 12 | 6 12 6 Robot Miss Streak 5 | 1 5 1 Penetration Max . | . . . Secondary Targets 4 | . 4 . Max Gunslinging Chain 1 | . 1 . Shots Hit Robots 74 | 10 57 7 Core Hits 45 | 7 35 3 Critical Kills . | . . . Critical Parts Destroyed . | . . . Critical Strikes 1 | . . 1 Burn 1 | . . 1 Melee Attacks . | . . . Impact . | . . . Slashing . | . . . Piercing . | . . . Sneak Attacks . | . . . Combat Hostiles . | . . . Follow-up Attacks . | . . . Damage Inflicted 961 | 109 751 101 Guns 840 | 109 630 101 Cannons . | . . . Explosions 121 | . 121 . Melee . | . . . Ramming . | . . . Kinetic 127 | . 127 . Thermal 661 | 109 508 44 Explosive 70 | . 70 . Electromagnetic 103 | . 46 57 Impact . | . . . Slashing . | . . . Piercing . | . . . Highest Corruption 1 | . 1 . Average Corruption 1 | . 1 . Corruption Purged . | . . . Corruption Blocked . | . . . Overload Shots . | . . . Overflow Damage 31 | . 31 . Projectiles . | . . . Explosions 31 | . 31 . Melee . | . . . Knockbacks . | . . . Impact . | . . . Kinetic . | . . . Secondary . | . . . Self-Inflicted Damage 91 | . 91 . Shots 1 | . 1 . Rammed . | . . . Targets Rammed . | . . . Kicked . | . . . Crushed . | . . . Highest Temperature 450 | 54 450 291 Average Temperature 139 | 21 159 141 Received Heat Transfer 447 | . 225 222 Effects 6 | . 6 . Interference 5 | . 5 . Matter Decay 1 | . 1 . Siege Activations . | . . . Robots Corrupted . | . . . Combat Hostiles . | . . . Parts Fried . | . . . Impact Corruptions . | . . . Robots Melted . | . . . Combat Hostiles . | . . . Parts Melted 1 | 1 . . Heat Transferred 1533 | 250 1098 185 Parts Sabotaged . | . . . Parts Stolen . | . . . Parts Stripped . | . . . Power Chain Reactions . | . . . Alert | -11 -10 -9 ------- Run | Yrd Mat Mat Peak Influence 416 | 45 416 139 Initial 115 | . 25 115 Average 179 | 14 225 116 Maximum Alert Level 2 | . 2 . Low Security (%) 59 | 100 43 100 Level 1 26 | . 37 . Level 2 13 | . 19 . Level 3 . | . . . Level 4 . | . . . Level 5 . | . . . High Security . | . . . Max Security . | . . . Squads Dispatched 4 | . 2 2 Investigation 3 | . 2 1 Extermination . | . . . Reinforcement 1 | . . 1 Assault . | . . . Garrison . | . . . Intercept . | . . . Searches Triggered . | . . . Construction Impeded . | . . . Haulers Reinforced . | . . . Active Scanning Responses . | . . . Cargo Convoy Interrupts . | . . . Stealth | -11 -10 -9 --------- Run | Yrd Mat Mat Distress Signals 1 | . 1 . Communications Jammed . | . . . Distress Signals . | . . . Times Spotted 28 | 1 22 5 Peak Tracking Total 5 | 1 3 5 Tactical Retreats 3 | . 3 . Traps | -11 -10 -9 ------- Run | Yrd Mat Mat Traps Triggered 2 | . 2 . Indirectly . | . . . Trap Hack Attempts . | . . . Triggered . | . . . Disarmed . | . . . Reprogrammed . | . . . Reused . | . . . Traps Extracted . | . . . Installed . | . . . Triggered . | . . . Machines | -11 -10 -9 ---------- Run | Yrd Mat Mat Machines Disabled 4 | . 3 1 Max in Single Turn 3 | . 3 1 Machines Repaired . | . . . Machines Dismantled . | . . . Machines Sabotaged . | . . . Overloaded Fab Kills . | . . . Hacking | -11 -10 -9 --------- Run | Yrd Mat Mat Machines Accessed 2 | . 1 1 Terminals 2 | . 1 1 Fabricators . | . . . Repair Stations . | . . . Recycling Units . | . . . Scanalyzers . | . . . Garrison Access . | . . . Total Hacks 7 | . 4 3 Successful 4 | . 3 1 Failed 3 | . 1 2 Catastrophic 1 | . 1 . Database Lockouts . | . . . Manual . | . . . Terminals 7 | . 4 3 Fabricators . | . . . Repair Stations . | . . . Recycling Units . | . . . Scanalyzers . | . . . Garrison Access . | . . . Terminal Hacks 4 | . 3 1 Record 2 | . 2 . Emergency Access Points 1 | . 1 . Zone Layout 1 | . . 1 Fabricator Hacks . | . . . Repair Station Hacks . | . . . Recycling Unit Hacks . | . . . Scanalyzer . | . . . Garrison Access Hacks . | . . . Unauthorized Hacks . | . . . Terminals . | . . . Fabricators . | . . . Repair Stations . | . . . Recycling Units . | . . . Scanalyzers . | . . . Garrison Access . | . . . Data Cores Recovered . | . . . Used . | . . . Hacking Detections 2 | . 1 1 Full Trace Events 2 | . 1 1 Feedback Events . | . . . Feedback Blocked . | . . . Robot Schematics Acquired . | . . . Robots Built . | . . . Authchips . | . . . Time . | . . . Total Robot Build Rating . | . . . Part Schematics Acquired . | . . . Parts Built . | . . . Authchips . | . . . Time . | . . . Total Part Build Rating . | . . . Parts Repaired . | . . . Time . | . . . Parts Recycled . | . . . Recycled Matter . | . . . Retrieved Matter . | . . . Retrieved Components . | . . . Parts Scanalyzed . | . . . Part Schematics Acquired . | . . . Parts Damaged . | . . . Bothacking | -11 -10 -9 ------------ Run | Yrd Mat Mat Used RIF Installer . | . . . Robots Hacked . | . . . Non-combat . | . . . Combat . | . . . Robot Hacks Applied . | . . . Relay Couplers Released . | . . . Fabnet Peak Effective % . | . . . Robots Rewired . | . . . Allies Hacked . | . . . Hacks Repelled . | . . . Allies | -11 -10 -9 -------- Run | Yrd Mat Mat Total Allies . | . . . Largest Group . | . . . Highest-Rated Group . | . . . Highest-Rated Ally . | . . . Total Orders . | . . . Ally Attacks . | . . . Total Damage . | . . . Kills . | . . . Allies Corrupted . | . . . Allies Melted . | . . . Intel | -11 -10 -9 ------- Run | Yrd Mat Mat Robot Analysis Total . | . . . Derelict Logs Recovered . | . . . Drone Launches . | . . . Drone Recoveries . | . . . Exploration | -11 -10 -9 ------------- Run | Yrd Mat Mat Turns Passed 627 | 94 449 84 Spaces Moved 411 | 82 273 56 Core 24 | 20 3 1 Treads . | . . . Legs . | . . . Wheels 366 | 62 249 55 Hover . | . . . Flight 21 | . 21 . Fastest Speed 37 | 50 37 95 Average Speed 84 | 72 84 104 Slowest Speed 450 | 80 250 450 Overloaded Moves . | . . . Propulsion Burnouts . | . . . Robots Hopped 1 | . 1 . Cave-ins Triggered . | . . . Exploration Rate (%) 18 | 9 36 9 Regions Visited 2 Branch Regions . Pre-discovered Areas . | . . . Known Exits Taken . | . . . Unknown Exits Taken 2 | 1 1 . Scrap Searched . | . . . Spaces Dug . | . . . Terrain Destroyed 39 | . 39 . Melee . | . . . Projectile . | . . . AOE 39 | . 39 . Terrain Rammed . | . . . Walls Destroyed . | . . . Machines Disabled . | . . . Actions | -11 -10 -9 --------- Run | Yrd Mat Mat Total 600 | 104 423 73 Wait 34 | . 26 8 Move 407 | 81 270 56 Hop 1 | . 1 . Pick Up 35 | 9 26 . Fast Attach . | . . . Attach 27 | 7 17 3 Detach 6 | . 5 1 Swap 10 | . 10 . Drop 21 | 1 20 . Fire 59 | 6 48 5 Melee . | . . . Ram . | . . . Kick . | . . . Crush . | . . . Escape Stasis . | . . . Rewire . | . . . Trap . | . . . Miscellaneous . | . . . Route ------- -11/Scrapyard -10/Materials -9/Materials History --------- Turn | Location | Event 2 | -11/Scrapyard | Met Revision 17 54 | -11/Scrapyard | Discovered new exit (range 8) 95 | -11/Scrapyard | Entered Materials 488 | -10/Materials | Discovered new exit (range 9) 544 | -10/Materials | Entered another Materials area 544 | -9/Materials | Evolved 2 slots: Power x1, Utility x1 628 | -9/Materials | Self-destructed Last Messages --------------- Retrieving Zone 7E layout... Downloaded map data. 00561_ ALERT: Suspicious activity at Terminal M008. Dispatching Investigation squad. 00590_ Atomic Centrifuge disabled. 00596_ G-47 Trooper suffers critical hit (Burn). 00596_ Wheel destroyed. 00596_ Critical hit (Burn: +37). 00597_ ALERT: Hostiles spotted, dispatching reinforcements to Terminal M004. 00599_ G-47 Trooper IFF system glitched. 00600_ G-34 Mercenary IFF system glitched. 00601_ G-47 Trooper IFF system glitched. 00601_ EM Shotgun destroyed. 00603_ G-47 Trooper heat damages Particle Gun. 00603_ Particle Gun destroyed. 00605_ G-47 Trooper IFF system glitched. 00605_ G-34 Mercenary destroyed. 00616_ Wheel destroyed. 00625_ Lgt. Ion Engine destroyed. Map ----- +----------------------------------------------------+ | ?????????????# #??????# # ??? | | ?????????????# """ #??????# # ??? | | ?????????????# """"" #??????# + ??? | | ?????????????# """"" #??????# # ??? | | ?????????????# """"" #??????# # ??? | | ?????????????# """ "#?????## ####??? | | ?????????????# T#?????# #????? | | ?????????????# "#?????# #????? | | ?????????????# #?????# ###??? | | ?????????????#######/##?????# ??? | | ???# #############?# #??????# ###??? | | ???? ### ##???#########????? | | ?????? """"" # #???# #????? | | ?????? """"""""" + #???# #????? | | ?????? """ """ # #???# #????? | | ?????? # #???# #????? | | ?????? ## ##???# #????? | | ??????############# #????####+####????? | | ???????????# # ######### #???????? | | ???????????# # # # #???????? | | ???????????# # # "T" # #???????? | | ???????????# # # # #???????? | | ???????????# # #?????????????????? | | ???????????# + #?????????????????? | | ??????????#####/### #?????????????????? | | ??????????# g =@%## #?????????????????? | | ??????????# "" !*## #?????????????????? | | ??????????# "" =## #?????????????????? | | ??????????#Y""Yg ## /?????????????????? | | ??????????# ## # ????????????????? | | ??????????#! ## ##????????????????? | | ??????????#####+## ?????????????????? | | ?????????????? ?????????????????? | | ?????????????? ?????????????????? | | ??????????????#+## ?????????????????? | | ?????????????????? #????????????????? | | ?????????????????? ???????????????? | | ??????????????????! !#??????????????? | | ??????????????????#!!!!##??????????????? | | ???????????????????#####???????????????? | | ???????????????????????????????????????? | | ???????????????????????????????????????? | | ???????????????????????????????????????? | | ???????????????????????????????????????? | | | | | | | | | | | | | +----------------------------------------------------+ Best States ------------- Heat Dissipation 35 Energy Generation 10 Energy Capacity 250 Matter Stores 400 Matter Capacity 400 Sight Range 18 Terrain Scan Range 16 Terrain Scan Density 10 Resistance: KI 20 Resistance: TH 20 Resistance: EX 20 Resistance: EM 20 Resistance: I 20 Resistance: S 20 Resistance: P 20 Evasion (%) 50 Offensive Hacking 10 Item Schematics ----------------- None Robot Schematics ------------------ None Fabricated ------------ Nothing Alien Tech Used ----------------- None Achievements -------------- None Challenges ------------ None Game ------ Seed HeartMetafieldBoregun Manual? 0 Play Time 00:20:00 Cumulative 0.2 hours Start 2024.06.07 @ 23:30:59 End 2024.06.07 @ 23:49:57 Sessions 1 Manual Loads 0 Difficulty Adventurer Special Mode None Game No. 2 Rogue 0 Adventurer 2 Explorer 0 Win Type - Total 0 Types 0/0/0/0/0/0/0/0/0 Lore% 1 Gallery% 3 Achievement% 3 Wizard Run 0 Options --------- Layout 1 ASCII 0 Keyboard 0 Movement Mouse Keybinds 0 Fullscreen 1 Font 48/X11 Map View 50x35 Zoom Use 0% Tactical HUD 1 Map Filters NONE Filters NONE Steam 1 RUN: 9a183acb-499f-4ad4-a64a-a5069b3f8022